fUST/lending_fUST_20250625
["ID","MTS","AMOUNT","RATE_DAILY","PERIOD"]
[367559654,1750857033513,-460.0,0.00016595,2]
[367559655,1750857033530,-535.20651662,0.00016595,2]
[367559656,1750857033543,-331.61181262,0.00016595,2]
[367559657,1750857033553,-417.14808937,0.00016595,2]
[367559658,1750857033563,-460.0,0.00016595,2]
[367559659,1750857033573,-460.0,0.00016595,2]
[367559660,1750857033583,-445.08686758,0.00016595,2]
[367559661,1750857033593,-438.4690602,0.00016595,2]
[367559662,1750857033603,-460.0,0.00016595,2]
[367559663,1750857033613,-460.0,0.00016595,2]
[367559664,1750857033623,-460.0,0.00016595,2]
[367559665,1750857033633,-460.0,0.00016595,2]
[367559666,1750857033643,-460.0,0.00016595,2]
[367559667,1750857033653,-460.0,0.00016595,2]
[367559669,1750857033663,-460.0,0.00016595,2]
[367559670,1750857033673,-460.0,0.00016595,2]
[367559671,1750857033683,-460.0,0.00016595,2]
[367559672,1750857033692,-509.86614898,0.00016595,2]
[367559673,1750857033702,-460.0,0.00016595,2]
[367559674,1750857033712,-460.0,0.00016595,2]
[367559675,1750857033722,-374.79343539,0.00016595,2]
[367559676,1750857033737,-85.20656461,0.00016595,2]
[367559677,1750857033747,-460.0,0.00016595,2]
[367559678,1750857033756,-460.0,0.00016595,2]
[367559679,1750857033766,-460.0,0.00016595,2]
[367559680,1750857033776,-460.0,0.00016595,2]
[367559681,1750857033786,-460.0,0.00016595,2]
[367559682,1750857033795,-460.0,0.00016595,2]
[367559683,1750857033804,-460.0,0.00016595,2]
[367559684,1750857033814,-466.49170912,0.00016595,2]
[367559685,1750857033824,-460.0,0.00016595,2]
[367559686,1750857033834,-460.0,0.00016595,2]
[367559687,1750857033845,-460.0,0.00016595,2]
[367559688,1750857033854,-460.0,0.00016595,2]
[367559689,1750857033864,-237.55222512,0.00016595,2]
[367559690,1750857033874,-460.0,0.00016595,2]
[367559691,1750857033884,-513.72,0.00016595,2]
[367559692,1750857033893,-460.0,0.00016595,2]
[367559693,1750857033903,-460.0,0.00016595,2]
[367559694,1750857033913,-460.0,0.00016595,2]
[367559695,1750857033922,-64.82371217,0.00016595,2]
[367559720,1750857038611,-460.0,0.00016594,2]
[367559722,1750857038621,-395.17628783,0.00016595,2]
[367559724,1750857038630,-460.0,0.00016595,2]
[367559726,1750857038639,-460.0,0.00016595,2]
[367559728,1750857038649,-460.0,0.00016595,2]
[367559730,1750857038659,-460.0,0.00016595,2]
[367559731,1750857038668,-709.99,0.00016595,2]
[367559732,1750857038678,-518.40859728,0.00016595,2]
[367559734,1750857038687,-387.90137834,0.00016595,2]
[367559735,1750857038697,-460.0,0.00016595,2]
[367559736,1750857038706,-460.0,0.00016595,2]
[367559737,1750857038716,-460.0,0.00016595,2]
[367559738,1750857038726,-460.0,0.00016595,2]
[367559739,1750857038735,-461.98,0.00016595,2]
[367559740,1750857038745,-460.0,0.00016595,2]
[367559741,1750857038755,-517.47232808,0.00016595,2]
[367559742,1750857038764,-460.0,0.00016595,2]
[367559743,1750857038774,-3020.06,0.00016595,2]
[367559744,1750857038784,-300.0,0.00016595,2]
[367559745,1750857038794,-811.27,0.00016595,2]
[367559746,1750857038803,-460.0,0.00016595,2]
[367559747,1750857038812,-460.0,0.00016595,2]
[367559748,1750857038821,-460.0,0.00016595,2]
[367559749,1750857038831,-460.0,0.00016595,2]
[367559750,1750857038840,-460.0,0.00016595,2]
[367559751,1750857038849,-460.0,0.00016595,2]
[367559752,1750857038858,-460.0,0.00016595,2]
[367559753,1750857038868,-460.0,0.00016595,2]
[367559754,1750857038877,-460.0,0.00016595,2]
[367559755,1750857038887,-460.0,0.00016595,2]
[367559756,1750857038896,-460.0,0.00016595,2]
[367559757,1750857038906,-460.0,0.00016595,2]
[367559758,1750857038915,-460.0,0.00016595,2]
[367559759,1750857038924,-460.0,0.00016595,2]
[367559760,1750857038934,-460.0,0.00016595,2]
[367559761,1750857038943,-460.0,0.00016595,2]
[367559762,1750857038952,-759.99,0.00016595,2]
[367559763,1750857038961,-460.0,0.00016595,2]
[367559764,1750857038970,-460.0,0.00016595,2]
[367559765,1750857038979,-879.89,0.00016595,2]
[367559766,1750857038988,-460.0,0.00016595,2]
[367559767,1750857038999,-460.0,0.00016595,2]
[367559768,1750857039008,-460.0,0.00016595,2]
[367559769,1750857039017,-460.0,0.00016595,2]
[367559770,1750857039026,-460.0,0.00016595,2]
[367559771,1750857039035,-598.32210142,0.00016595,2]
[367559772,1750857039044,-460.0,0.00016595,2]
[367559773,1750857039053,-786.96,0.00016595,2]
[367559774,1750857039062,-151.0,0.00016595,2]
[367559775,1750857039072,-151.0,0.00016595,2]
[367559776,1750857039081,-151.0,0.00016595,2]
[367559777,1750857039090,-151.0,0.00016595,2]
[367559778,1750857039099,-5747.27,0.00016595,2]
[367559779,1750857039108,-460.0,0.00016595,2]
[367559780,1750857039117,-155.48646027,0.00016595,2]
[367559781,1750857039126,-460.0,0.00016595,2]
[367559782,1750857039136,-151.0,0.00016595,2]
[367559783,1750857039145,-460.0,0.00016596,2]
[367559784,1750857039154,-460.0,0.00016596,2]
[367559785,1750857039163,-500.0,0.00016596,2]
[367559786,1750857039173,-410.98299414,0.00016596,2]
[367559787,1750857039182,-460.0,0.00016596,2]
[367559788,1750857039191,-460.0,0.00016596,2]
[367559789,1750857039200,-460.0,0.00016596,2]
[367559790,1750857039209,-460.0,0.00016596,2]
[367559791,1750857039219,-433.51168511,0.00016596,2]
[367559792,1750857039228,-460.0,0.00016596,2]
[367559793,1750857039237,-340.25335158,0.00016596,2]
[367559794,1750857039246,-460.0,0.00016596,2]
[367559795,1750857039255,-460.0,0.00016596,2]
[367559796,1750857039264,-322.09710814,0.00016596,2]
[367559797,1750857039274,-460.0,0.00016596,2]
[367559798,1750857039283,-736.44,0.00016596,2]
[367559799,1750857039292,-460.0,0.00016596,2]
[367559800,1750857039302,-460.0,0.00016596,2]
[367559801,1750857039311,-460.0,0.00016596,2]
[367559802,1750857039323,-460.0,0.00016596,2]
[367559803,1750857039332,-460.0,0.00016596,2]
[367559804,1750857039341,-451.59043018,0.00016596,2]
[367559805,1750857039351,-460.0,0.00016596,2]
[367559806,1750857039361,-197.35884086,0.00016596,2]
[367559807,1750857039370,-460.0,0.00016596,2]
[367559808,1750857039379,-460.0,0.00016596,2]
[367559809,1750857039389,-460.0,0.00016596,2]
[367559810,1750857039398,-460.0,0.00016596,2]
[367559811,1750857039408,-460.0,0.00016596,2]
[367559812,1750857039417,-460.0,0.00016596,2]
[367559813,1750857039426,-151.0,0.00016596,2]
[367559814,1750857039435,-151.0,0.00016596,2]
[367559815,1750857039444,-500.0,0.00016596,2]
[367559816,1750857039454,-188.9931139,0.00016596,2]
[367559817,1750857039463,-460.0,0.00016596,2]
[367559818,1750857039471,-460.0,0.00016596,2]
[367559819,1750857039480,-605.06,0.00016596,2]
[367559820,1750857039490,-644.6,0.00016596,2]
[367559821,1750857039500,-512.3,0.00016596,2]
[367559822,1750857039510,-460.0,0.00016596,2]
[367559823,1750857039519,-460.0,0.00016596,2]
[367559824,1750857039528,-473.46,0.00016596,2]
[367559825,1750857039537,-906.79,0.00016596,2]
[367559826,1750857039546,-460.0,0.00016596,2]
[367559827,1750857039556,-714.8,0.00016596,2]
[367559828,1750857039565,-460.0,0.00016596,2]
[367559829,1750857039574,-808.42,0.00016596,2]
[367559830,1750857039583,-460.0,0.00016596,2]
[367559831,1750857039592,-460.0,0.00016596,2]
[367559832,1750857039601,-517.22,0.00016596,2]
[367559833,1750857039611,-2647.22,0.00016596,2]
[367559834,1750857039620,-460.0,0.00016596,2]
[367559835,1750857039629,-460.0,0.00016596,2]
[367559836,1750857039639,-1641.6,0.00016596,2]
[367559837,1750857039648,-460.0,0.00016596,2]
[367559838,1750857039658,-460.0,0.00016596,2]
[367559839,1750857039667,-460.0,0.00016596,2]
[367559840,1750857039677,-2242.73,0.00016596,2]
[367559841,1750857039686,-460.0,0.00016596,2]
[367559842,1750857039695,-1574.48,0.00016596,2]
[367559843,1750857039710,-460.0,0.00016596,2]
[367559844,1750857039720,-1706.67,0.00016596,2]
[367559845,1750857039729,-543.53,0.00016597,2]
[367559846,1750857039738,-500.0,0.00016597,2]
[367559847,1750857039748,-351.13608113,0.00016597,2]
[367559848,1750857039758,-388.39075583,0.00016597,2]
[367559849,1750857039767,-460.0,0.00016597,2]
[367559850,1750857039777,-460.0,0.00016597,2]
[367559851,1750857039787,-460.0,0.00016597,2]
[367559852,1750857039796,-460.0,0.00016597,2]
[367559853,1750857039806,-155.71614556,0.00016597,2]
[367559854,1750857039817,-151.0,0.00016597,2]
[367559855,1750857039827,-152.31220632,0.00016597,2]
[367559856,1750857039835,-151.0,0.00016597,2]
[367559857,1750857039845,-151.0,0.00016597,2]
[367559858,1750857039855,-460.0,0.00016597,2]
[367559859,1750857039864,-460.0,0.00016597,2]
[367559860,1750857039873,-460.0,0.00016597,2]
[367559861,1750857039883,-460.0,0.00016597,2]
[367559862,1750857039892,-460.0,0.00016597,2]
[367559863,1750857039901,-500.0,0.00016597,2]
[367559864,1750857039910,-460.0,0.00016597,2]
[367559865,1750857039919,-460.0,0.00016597,2]
[367559866,1750857039928,-460.0,0.00016597,2]
[367559867,1750857039937,-460.0,0.00016597,2]
[367559868,1750857039947,-460.0,0.00016597,2]
[367559869,1750857039957,-460.0,0.00016597,2]
[367559870,1750857039966,-460.0,0.00016597,2]
[367559871,1750857039975,-460.0,0.00016597,2]
[367559872,1750857039984,-460.0,0.00016597,2]
[367559873,1750857039993,-460.0,0.00016597,2]
[367559874,1750857040002,-460.0,0.00016597,2]
[367559875,1750857040011,-460.0,0.00016597,2]
[367559876,1750857040020,-460.0,0.00016597,2]
[367559877,1750857040029,-460.0,0.00016597,2]
[367559878,1750857040039,-460.0,0.00016597,2]
[367559879,1750857040050,-460.0,0.00016597,2]
[367559880,1750857040061,-3990.6,0.00016597,2]
[367559881,1750857040073,-460.0,0.00016597,2]
[367559882,1750857040086,-1401.48,0.00016597,2]
[367559883,1750857040100,-460.0,0.00016597,2]
[367559884,1750857040109,-460.0,0.00016597,2]
[367559885,1750857040119,-460.0,0.00016597,2]
[367559886,1750857040127,-460.0,0.00016597,2]
[367559887,1750857040137,-718.23,0.00016597,2]
[367559888,1750857040146,-460.0,0.00016597,2]
[367559889,1750857040155,-460.0,0.00016597,2]
[367559890,1750857040164,-404.83564894,0.00016597,2]
[367559891,1750857040173,-518.11886002,0.00016597,2]
[367559892,1750857040182,-448.67180794,0.00016597,2]
[367559893,1750857040191,-460.0,0.00016597,2]
[367559894,1750857040200,-460.0,0.00016597,2]
[367559895,1750857040209,-460.0,0.00016597,2]
[367559896,1750857040219,-379.35980627,0.00016598,2]
[367559897,1750857040228,-460.0,0.00016598,2]
[367559898,1750857040237,-460.0,0.00016598,2]
[367559900,1750857040247,-460.0,0.00016598,2]
[367559901,1750857040257,-460.0,0.00016598,2]
[367559902,1750857040265,-460.0,0.00016598,2]
[367559903,1750857040275,-500.0,0.00016598,2]
[367559904,1750857040284,-390.27924809,0.00016598,2]
[367559905,1750857040293,-460.0,0.00016598,2]
[367559906,1750857040302,-460.0,0.00016598,2]
[367559907,1750857040312,-199.0722401,0.00016598,2]
[367559908,1750857040322,-440.0,0.00016598,2]
[367559909,1750857040331,-460.0,0.00016598,2]
[367559910,1750857040340,-460.0,0.00016598,2]
[367559912,1750857040349,-151.0,0.00016598,2]
[367559914,1750857040359,-151.0,0.00016598,2]
[367559918,1750857040516,-151.0,0.00016598,2]
[367559920,1750857040526,-151.0,0.00016598,2]
[367559922,1750857040535,-151.0,0.00016598,2]
[367559924,1750857040544,-151.0,0.00016598,2]
[367559926,1750857040553,-151.0,0.00016598,2]
[367559928,1750857040562,-151.0,0.00016598,2]
[367559930,1750857040571,-151.0,0.00016598,2]
[367559932,1750857040580,-460.0,0.00016598,2]
[367559934,1750857040589,-460.0,0.00016598,2]
[367559936,1750857040598,-460.0,0.00016598,2]
[367559938,1750857040608,-460.0,0.00016598,2]
[367559940,1750857040617,-460.0,0.00016598,2]
[367559942,1750857040626,-460.0,0.00016598,2]
[367559944,1750857040635,-460.0,0.00016598,2]
[367559946,1750857040645,-596.38,0.00016598,2]
[367559948,1750857040656,-420.24623717,0.00016598,2]
[367559950,1750857040665,-32689.87990087,0.000166,2]
[367559952,1750857040674,-151.0,0.00016622,2]
[367559954,1750857040684,-151.0,0.00016623,2]
[367559956,1750857040693,-186.49757628,0.00016623,2]
[367559958,1750857040703,-500.0,0.00016623,2]
[367559960,1750857040711,-151.0,0.00016624,2]
[367559962,1750857040720,-151.0,0.00016624,2]
[367559964,1750857040730,-151.0,0.00016625,2]
[367559966,1750857040739,-199.12907132,0.00016625,2]
[367559968,1750857040748,-151.0,0.00016625,2]
[367559970,1750857040757,-151.0,0.00016625,2]
[367559972,1750857040768,-151.0,0.00016625,2]
[367559974,1750857040777,-151.0,0.00016625,2]
[367559976,1750857040787,-151.0,0.00016625,2]
[367559978,1750857040797,-151.0,0.00016625,2]
[367559980,1750857040805,-3502.4501284,0.00016627,2]
[367559982,1750857040815,-151.0,0.0001665,2]
[367559984,1750857040824,-500.0,0.00016651,2]
[367559986,1750857040833,-151.0,0.00016652,2]
[367559988,1750857040842,-198.72712322,0.00016653,2]
[367559990,1750857040851,-209.3546536,0.00016653,2]
[367559992,1750857040860,-151.0,0.00016653,2]
[367559994,1750857040870,-246.8316239,0.00016653,2]
[367559996,1750857040879,-151.0,0.00016653,2]
[367559998,1750857040888,-217.47087601,0.00016678,2]
[367560000,1750857040897,-151.0,0.00016679,2]
[367560002,1750857040906,-198.0,0.0001668,2]
[367560004,1750857040915,-245.0,0.00016707,2]
[367560006,1750857040924,-16515.04960692,0.00016772,2]
[367560008,1750857040933,-460.0,0.00016774,2]
[367560010,1750857040942,-318.3632662,0.000168,2]
[367560012,1750857040951,-159.1939926,0.000168,2]
[367560014,1750857040960,-159.1939926,0.000168,2]
[367560016,1750857040969,-159.1939926,0.000168,2]
[367560018,1750857040978,-158.7984886,0.000168,2]
[367560020,1750857040987,-366.0085437,0.000168,2]
[367560022,1750857040997,-366.0085437,0.000168,2]
[367560024,1750857041007,-460.0,0.00016867,2]
[367560026,1750857041017,-588.3,0.00016868,2]
[367560028,1750857041026,-460.0,0.00016868,2]
[367560030,1750857041034,-404.87389195,0.00016868,2]
[367560032,1750857041043,-1783.2,0.00016868,2]
[367560034,1750857041052,-388.69501479,0.00016868,2]
[367560036,1750857041061,-1165.86,0.00016868,2]
[367560038,1750857041070,-1907.51,0.00016868,2]
[367560040,1750857041079,-460.0,0.00016868,2]
[367560042,1750857041088,-492.2,0.00016868,2]
[367560044,1750857041097,-315.77731311,0.00016868,2]
[367560046,1750857041106,-745.95,0.00016868,2]
[367560048,1750857041115,-460.0,0.00016868,2]
[367560050,1750857041124,-460.0,0.00016868,2]
[367560051,1750857041133,-460.0,0.00016868,2]
[367560053,1750857041143,-1453.2,0.00016868,2]
[367560055,1750857041152,-460.0,0.00016868,2]
[367560056,1750857041160,-460.0,0.00016868,2]
[367560058,1750857041170,-1107.18,0.00016868,2]
[367560060,1750857041179,-460.0,0.00016868,2]
[367560062,1750857041188,-460.0,0.00016868,2]
[367560064,1750857041197,-460.0,0.00016868,2]
[367560065,1750857041206,-650.29,0.00016868,2]
[367560066,1750857041215,-460.0,0.00016868,2]
[367560068,1750857041224,-2026.79,0.00016868,2]
[367560070,1750857041233,-2101.35,0.00016868,2]
[367560071,1750857041242,-460.0,0.00016868,2]
[367560073,1750857041252,-460.0,0.00016869,2]
[367560075,1750857041261,-460.0,0.00016869,2]
[367560077,1750857041270,-460.0,0.00016869,2]
[367560078,1750857041279,-460.0,0.00016869,2]
[367560079,1750857041288,-280.1787773,0.00016869,2]
[367560080,1750857041297,-460.0,0.00016869,2]
[367560081,1750857041306,-460.0,0.00016869,2]
[367560082,1750857041317,-460.0,0.00016869,2]
[367560083,1750857041326,-460.0,0.00016869,2]
[367560084,1750857041335,-460.0,0.00016869,2]
[367560085,1750857041345,-460.0,0.00016869,2]
[367560086,1750857041355,-442.72484457,0.00016869,2]
[367560087,1750857041365,-460.0,0.00016869,2]
[367560088,1750857041374,-460.0,0.00016869,2]
[367560089,1750857041383,-460.0,0.00016869,2]
[367560090,1750857041394,-460.0,0.00016869,2]
[367560091,1750857041403,-460.0,0.00016869,2]
[367560092,1750857041412,-460.0,0.00016869,2]
[367560093,1750857041421,-457.33882284,0.00016869,2]
[367560094,1750857041431,-460.0,0.00016869,2]
[367560095,1750857041440,-460.0,0.00016869,2]
[367560096,1750857041449,-460.0,0.00016869,2]
[367560097,1750857041458,-434.21137881,0.00016869,2]
[367560098,1750857041467,-460.0,0.00016869,2]
[367560099,1750857041476,-460.0,0.00016869,2]
[367560100,1750857041485,-489.0332452,0.00016869,2]
[367560101,1750857041494,-179.77402267,0.00016869,2]
[367560102,1750857041503,-460.0,0.00016869,2]
[367560103,1750857041513,-460.0,0.00016869,2]
[367560104,1750857041521,-460.0,0.00016869,2]
[367560105,1750857041530,-460.0,0.00016869,2]
[367560106,1750857041539,-460.0,0.00016869,2]
[367560107,1750857041548,-460.0,0.00016869,2]
[367560108,1750857041558,-460.0,0.00016869,2]
[367560109,1750857041567,-709.99,0.00016869,2]
[367560110,1750857041576,-544.74,0.00016869,2]
[367560111,1750857041586,-460.0,0.00016869,2]
[367560112,1750857041595,-460.0,0.00016869,2]
[367560113,1750857041604,-461.98,0.00016869,2]
[367560114,1750857041614,-3020.06,0.00016869,2]
[367560115,1750857041625,-811.27,0.00016869,2]
[367560116,1750857041634,-460.0,0.00016869,2]
[367560117,1750857041643,-460.0,0.00016869,2]
[367560118,1750857041653,-460.0,0.00016869,2]
[367560119,1750857041662,-460.0,0.00016869,2]
[367560120,1750857041672,-460.0,0.00016869,2]
[367560121,1750857041681,-460.0,0.00016869,2]
[367560122,1750857041691,-575.22194498,0.00016869,2]
[367560123,1750857041700,-759.99,0.00016869,2]
[367560124,1750857041709,-460.0,0.00016869,2]
[367560125,1750857041719,-879.89,0.00016869,2]
[367560126,1750857041728,-460.0,0.00016869,2]
[367560127,1750857041737,-460.0,0.00016869,2]
[367560128,1750857041747,-460.0,0.00016869,2]
[367560129,1750857041756,-786.96,0.00016869,2]
[367560130,1750857041766,-5747.27,0.00016869,2]
[367560131,1750857041777,-460.0,0.00016869,2]
[367560132,1750857041786,-460.0,0.0001687,2]
[367560133,1750857041796,-460.0,0.0001687,2]
[367560134,1750857041805,-292.86110855,0.0001687,2]
[367560135,1750857041815,-460.0,0.0001687,2]
[367560136,1750857041824,-736.44,0.0001687,2]
[367560137,1750857041834,-460.0,0.0001687,2]
[367560138,1750857041843,-460.0,0.0001687,2]
[367560139,1750857041852,-460.0,0.0001687,2]
[367560140,1750857041861,-460.0,0.0001687,2]
[367560141,1750857041871,-460.0,0.0001687,2]
[367560142,1750857041880,-460.0,0.0001687,2]
[367560143,1750857041890,-460.0,0.0001687,2]
[367560144,1750857041899,-460.0,0.0001687,2]
[367560145,1750857041908,-460.0,0.0001687,2]
[367560146,1750857041918,-605.06,0.0001687,2]
[367560147,1750857041927,-644.6,0.0001687,2]
[367560148,1750857041938,-512.3,0.0001687,2]
[367560149,1750857041947,-460.0,0.0001687,2]
[367560150,1750857041958,-460.0,0.0001687,2]
[367560151,1750857041968,-906.79,0.0001687,2]
[367560152,1750857041977,-180.0,0.0001687,2]
[367560153,1750857041986,-714.8,0.0001687,2]
[367560154,1750857041996,-808.42,0.0001687,2]
[367560155,1750857042005,-460.0,0.0001687,2]
[367560156,1750857042014,-2647.22,0.0001687,2]
[367560157,1750857042024,-244.83,0.0001687,2]
[367560158,1750857042033,-460.0,0.0001687,2]
[367560159,1750857042043,-1641.6,0.0001687,2]
[367560160,1750857042052,-460.0,0.0001687,2]
[367560161,1750857042061,-460.0,0.0001687,2]
[367560162,1750857042070,-460.0,0.0001687,2]
[367560163,1750857042080,-2242.73,0.0001687,2]
[367560164,1750857042089,-460.0,0.0001687,2]
[367560165,1750857042098,-1574.48,0.0001687,2]
[367560166,1750857042107,-460.0,0.0001687,2]
[367560167,1750857042117,-1706.67,0.0001687,2]
[367560168,1750857042126,-457.29,0.00016871,2]
[367560169,1750857042136,-531.09015572,0.00016871,2]
[367560170,1750857042145,-460.0,0.00016871,2]
[367560171,1750857042155,-460.0,0.00016871,2]
[367560172,1750857042164,-460.0,0.00016871,2]
[367560173,1750857042173,-500.0,0.00016871,2]
[367560174,1750857042182,-423.23930801,0.00016871,2]
[367560175,1750857042192,-460.0,0.00016871,2]
[367560176,1750857042201,-462.58033042,0.00016871,2]
[367560177,1750857042210,-460.0,0.00016871,2]
[367560178,1750857042220,-482.58,0.00016871,2]
[367560179,1750857042229,-460.0,0.00016871,2]
[367560180,1750857042239,-290.0,0.00016871,2]
[367560181,1750857042248,-460.0,0.00016871,2]
[367560182,1750857042257,-460.0,0.00016871,2]
[367560183,1750857042265,-3990.6,0.00016871,2]
[367560184,1750857042275,-460.0,0.00016871,2]
[367560185,1750857042284,-1401.48,0.00016871,2]
[367560186,1750857042293,-460.0,0.00016871,2]
[367560187,1750857042303,-460.0,0.00016871,2]
[367560188,1750857042312,-460.0,0.00016871,2]
[367560189,1750857042323,-718.23,0.00016871,2]
[367560190,1750857042332,-460.0,0.00016871,2]
[367560191,1750857042342,-460.0,0.00016871,2]
[367560192,1750857042351,-250.0,0.00016871,2]
[367560193,1750857042360,-330.0,0.00016872,2]
[367560194,1750857042369,-506.16148271,0.00016872,2]
[367560195,1750857042378,-460.0,0.00016872,2]
[367560196,1750857042388,-460.0,0.00016872,2]
[367560197,1750857042397,-460.0,0.00016872,2]
[367560198,1750857042406,-460.0,0.00016872,2]
[367560199,1750857042416,-460.0,0.00016872,2]
[367560200,1750857042425,-460.0,0.00016872,2]
[367560201,1750857042434,-460.0,0.00016872,2]
[367560202,1750857042443,-460.0,0.00016872,2]
[367560203,1750857042453,-159.1939926,0.000169,2]
[367560204,1750857042462,-159.1939926,0.000169,2]
[367560205,1750857042471,-366.0085437,0.000169,2]
[367560206,1750857042480,-396.6301838,0.00016904,2]
[367560207,1750857042490,-286.0,0.00016947,5]
[367560208,1750857042499,-3411.87733264,0.00016967,2]
[367560209,1750857042508,-366.0085437,0.00016986,2]
[367560210,1750857042517,-366.0085437,0.00016986,2]
[367560211,1750857042526,-732.0170874,0.00016986,2]
[367560212,1750857042536,-1000.0,0.00017,17]
[367560213,1750857042545,-460.0,0.00017048,2]
[367560214,1750857042554,-273.0,0.00017074,2]
[367560215,1750857042564,-460.0,0.00017141,2]
[367560216,1750857042573,-460.0,0.00017142,2]
[367560217,1750857042583,-1783.2,0.00017142,2]
[367560218,1750857042591,-1165.86,0.00017142,2]
[367560219,1750857042601,-1907.51,0.00017142,2]
[367560220,1750857042611,-460.0,0.00017142,2]
[367560221,1750857042620,-745.95,0.00017142,2]
[367560222,1750857042629,-460.0,0.00017142,2]
[367560223,1750857042639,-460.0,0.00017142,2]
[367560224,1750857042649,-460.0,0.00017142,2]
[367560225,1750857042659,-1453.2,0.00017142,2]
[367560226,1750857042668,-460.0,0.00017142,2]
[367560227,1750857042677,-1107.18,0.00017142,2]
[367560228,1750857042687,-460.0,0.00017142,2]
[367560229,1750857042696,-547.74479429,0.00017142,2]
[367560230,1750857042705,-460.0,0.00017142,2]
[367560231,1750857042715,-650.29,0.00017142,2]
[367560232,1750857042724,-235.8,0.00017142,2]
[367560233,1750857042733,-2026.79,0.00017142,2]
[367560234,1750857042742,-2101.35,0.00017142,2]
[367560235,1750857042752,-460.0,0.00017142,2]
[367560236,1750857042761,-416.4341284,0.00017143,2]
[367560237,1750857042771,-460.0,0.00017143,2]
[367560238,1750857042781,-440.0,0.00017143,2]
[367560239,1750857042790,-460.0,0.00017143,2]
[367560240,1750857042799,-460.0,0.00017143,2]
[367560241,1750857042808,-460.0,0.00017143,2]
[367560242,1750857042818,-460.0,0.00017143,2]
[367560243,1750857042827,-609.5618657,0.00017143,2]
[367560244,1750857042837,-460.0,0.00017143,2]
[367560245,1750857042846,-460.0,0.00017143,2]
[367560246,1750857042865,-460.0,0.00017143,2]
[367560247,1750857042875,-460.0,0.00017143,2]
[367560248,1750857042884,-460.0,0.00017143,2]
[367560249,1750857042893,-460.0,0.00017143,2]
[367560250,1750857042902,-596.16203107,0.00017143,2]
[367560251,1750857042911,-460.0,0.00017143,2]
[367560252,1750857042920,-460.0,0.00017143,2]
[367560253,1750857042929,-460.0,0.00017143,2]
[367560254,1750857042938,-460.0,0.00017143,2]
[367560255,1750857042947,-460.0,0.00017143,2]
[367560256,1750857042957,-460.0,0.00017143,2]
[367560257,1750857042966,-460.0,0.00017143,2]
[367560258,1750857042976,-460.0,0.00017143,2]
[367560259,1750857042985,-460.0,0.00017143,2]
[367560260,1750857042994,-461.1,0.00017143,2]
[367560261,1750857043004,-460.0,0.00017143,2]
[367560262,1750857043013,-709.99,0.00017143,2]
[367560263,1750857043023,-460.0,0.00017143,2]
[367560265,1750857043032,-460.0,0.00017143,2]
[367560266,1750857043041,-461.98,0.00017143,2]
[367560267,1750857043050,-3020.06,0.00017143,2]
[367560268,1750857043059,-811.27,0.00017143,2]